[Event "Titled Tuesday Blitz May 03 Late 2022"]
[White "Smail, Benedict"]
[Black "Kozin, Yuri"]
[WhiteFideId "2050480"]
[BlackFideId "4129920"]
[WhiteElo "2070"]
[BlackElo "2555"]
[Result "0-1"]
[Round "02"]
[TimeControl "180+1"]
[Date "2022.05.03"]
[WhiteClock "0:00:03"]
[BlackClock "0:00:30"]

1. d4 {[%clk 0:03:00]}  d5 {[%clk 0:02:57]} 2. c4 {[%clk 0:03:01]}  c6 {[%clk 0:02:57]} 3. Nc3 {[%clk 0:03:01]}  Nf6 {[%clk 0:02:57]} 4. Nf3 {[%clk 0:03:00]}  dxc4 {[%clk 0:02:57]} 5. a4 {[%clk 0:02:57]}  Bf5 {[%clk 0:02:57]} 6. Nh4 {[%clk 0:02:57]}  Bd7 {[%clk 0:02:55]} 7. e4 {[%clk 0:02:56]}  e6 {[%clk 0:02:50]} 8. Bxc4 {[%clk 0:02:54]}  Nxe4 {[%clk 0:02:47]} 9. Nf3 {[%clk 0:02:54]}  Nxc3 {[%clk 0:02:43]} 10. bxc3 {[%clk 0:02:54]}  Be7 {[%clk 0:02:44]} 11. Rb1 {[%clk 0:02:52]}  Qc8 {[%clk 0:02:40]} 12. Ne5 {[%clk 0:02:48]}  O-O {[%clk 0:02:36]} 13. O-O {[%clk 0:02:45]}  c5 {[%clk 0:02:36]} 14. Bd3 {[%clk 0:02:40]}  Nc6 {[%clk 0:02:31]} 15. Nxd7 {[%clk 0:02:36]}  Qxd7 {[%clk 0:02:30]} 16. Qh5 {[%clk 0:02:32]}  g6 {[%clk 0:02:29]} 17. Qf3 {[%clk 0:02:09]}  cxd4 {[%clk 0:02:16]} 18. cxd4 {[%clk 0:02:07]}  Rab8 {[%clk 0:02:07]} 19. Bh6 {[%clk 0:01:17]}  Rfd8 {[%clk 0:02:05]} 20. Rfd1 {[%clk 0:00:44]}  Bf8 {[%clk 0:01:59]} 21. Bg5 {[%clk 0:00:43]}  Re8 {[%clk 0:01:57]} 22. Bf4 {[%clk 0:00:40]}  Bd6 {[%clk 0:01:53]} 23. Be3 {[%clk 0:00:40]}  Ne7 {[%clk 0:01:51]} 24. Bb5 {[%clk 0:00:38]}  Nc6 {[%clk 0:01:47]} 25. d5 {[%clk 0:00:37]}  exd5 {[%clk 0:01:45]} 26. Qxd5 {[%clk 0:00:37]}  Re6 {[%clk 0:01:31]} 27. Bxa7 {[%clk 0:00:33]}  Rd8 {[%clk 0:01:26]} 28. Qf3 {[%clk 0:00:32]}  Qc7 {[%clk 0:01:20]} 29. Bxc6 {[%clk 0:00:28]}  Bxh2+ {[%clk 0:01:01]} 30. Kh1 {[%clk 0:00:27]}  Rxd1+ {[%clk 0:01:01]} 31. Rxd1 {[%clk 0:00:18]}  bxc6 {[%clk 0:01:01]} 32. Bc5 {[%clk 0:00:12]}  Be5 {[%clk 0:01:00]} 33. g3 {[%clk 0:00:10]}  Kg7 {[%clk 0:00:57]} 34. Rd2 {[%clk 0:00:07]}  Rf6 {[%clk 0:00:56]} 35. Qe3 {[%clk 0:00:06]}  h5 {[%clk 0:00:54]} 36. Ra2 {[%clk 0:00:06]}  Bd6 {[%clk 0:00:51]} 37. Bd4 {[%clk 0:00:05]}  c5 {[%clk 0:00:45]} 38. Bxf6+ {[%clk 0:00:05]}  Kxf6 {[%clk 0:00:45]} 39. Qc3+ {[%clk 0:00:06]}  Be5 {[%clk 0:00:44]} 40. Qf3+ {[%clk 0:00:06]}  Kg7 {[%clk 0:00:44]} 41. a5 {[%clk 0:00:06]}  Bd4 {[%clk 0:00:41]} 42. Kg2 {[%clk 0:00:06]}  c4 {[%clk 0:00:41]} 43. a6 {[%clk 0:00:06]}  c3 {[%clk 0:00:42]} 44. Qd3 {[%clk 0:00:06]}  Ba7 {[%clk 0:00:39]} 45. Rc2 {[%clk 0:00:04]}  Qc6+ {[%clk 0:00:39]} 46. Kg1 {[%clk 0:00:04]}  Qb6 {[%clk 0:00:36]} 47. Qxc3+ {[%clk 0:00:04]}  Kh7 {[%clk 0:00:36]} 48. Qa1 {[%clk 0:00:01]}  h4 {[%clk 0:00:35]} 49. Ra2 {[%clk 0:00:02]}  hxg3 {[%clk 0:00:34]} 50. Kg2 {[%clk 0:00:03]}  gxf2 {[%clk 0:00:33]} 51. Qh1+ {[%clk 0:00:03]}  Kg7 {[%clk 0:00:33]} 52. Re2 {[%clk 0:00:04]}  Qxa6 {[%clk 0:00:32]} 53. Qb1 {[%clk 0:00:04]}  Qc6+ {[%clk 0:00:31]} 54. Kf1 {[%clk 0:00:03]}  Qh1# {[%clk 0:00:30]} 0-1


[Site "https://www.chess.com"]

[Event "Titled Tuesday Blitz May 03 Late 2022"]
[White "Stanisz, Patryk"]
[Black "Pinheiro, Iung Alicio de O."]
[WhiteFideId "1123106"]
[BlackFideId "2104350"]
[WhiteElo "1833"]
[BlackElo "2511"]
[Result "0-1"]
[Round "02"]
[TimeControl "180+1"]
[Date "2022.05.03"]
[WhiteClock "0:00:13"]
[BlackClock "0:00:11"]

1. g3 {[%clk 0:03:00]}  c5 {[%clk 0:02:59]} 2. Bg2 {[%clk 0:03:01]}  g6 {[%clk 0:02:59]} 3. c4 {[%clk 0:02:59]}  Bg7 {[%clk 0:02:59]} 4. Nc3 {[%clk 0:03:00]}  Nc6 {[%clk 0:02:59]} 5. Nf3 {[%clk 0:02:58]}  d6 {[%clk 0:02:56]} 6. O-O {[%clk 0:02:58]}  Be6 {[%clk 0:02:56]} 7. d3 {[%clk 0:02:57]}  Qc8 {[%clk 0:02:56]} 8. Re1 {[%clk 0:02:55]}  Bh3 {[%clk 0:02:56]} 9. Bh1 {[%clk 0:02:56]}  h5 {[%clk 0:02:56]} 10. Bg5 {[%clk 0:02:44]}  h4 {[%clk 0:02:53]} 11. Nd5 {[%clk 0:02:30]}  hxg3 {[%clk 0:02:49]} 12. fxg3 {[%clk 0:02:31]}  Bxb2 {[%clk 0:02:37]} 13. Rb1 {[%clk 0:02:31]}  Bd4+ {[%clk 0:02:32]} 14. Nxd4 {[%clk 0:02:29]}  cxd4 {[%clk 0:02:26]} 15. e3 {[%clk 0:02:14]}  f6 {[%clk 0:02:19]} 16. Bf4 {[%clk 0:02:12]}  g5 {[%clk 0:02:10]} 17. exd4 {[%clk 0:02:12]}  gxf4 {[%clk 0:02:10]} 18. Qe2 {[%clk 0:02:03]}  Kf7 {[%clk 0:01:58]} 19. Nxf4 {[%clk 0:01:54]}  Nxd4 {[%clk 0:01:21]} 20. Qf2 {[%clk 0:01:47]}  e5 {[%clk 0:01:22]} 21. Bxb7 {[%clk 0:01:45]}  Qe8 {[%clk 0:01:11]} 22. Bd5+ {[%clk 0:01:44]}  Kg7 {[%clk 0:01:10]} 23. Rb7+ {[%clk 0:01:36]}  Ne7 {[%clk 0:00:46]} 24. Rxe7+ {[%clk 0:01:27]}  Qxe7 {[%clk 0:00:44]} 25. Bxa8 {[%clk 0:01:19]}  Rxa8 {[%clk 0:00:38]} 26. Nxh3 {[%clk 0:01:19]}  Qb7 {[%clk 0:00:39]} 27. Re3 {[%clk 0:00:54]}  Rb8 {[%clk 0:00:34]} 28. Kf1 {[%clk 0:00:27]}  Qb1+ {[%clk 0:00:32]} 29. Qe1 {[%clk 0:00:25]}  Qc2 {[%clk 0:00:24]} 30. Qf2 {[%clk 0:00:18]}  Rb1+ {[%clk 0:00:23]} 31. Kg2 {[%clk 0:00:19]}  Qd1 {[%clk 0:00:22]} 32. Ng1 {[%clk 0:00:17]}  Nf5 {[%clk 0:00:14]} 33. Rf3 {[%clk 0:00:16]}  Nd4 {[%clk 0:00:13]} 34. Rxf6 {[%clk 0:00:17]}  Qxg1+ {[%clk 0:00:12]} 35. Qxg1 {[%clk 0:00:15]}  Rxg1+ {[%clk 0:00:13]} 36. Kxg1 {[%clk 0:00:16]}  Kxf6 {[%clk 0:00:13]} 37. Kf2 {[%clk 0:00:16]}  Nc2 {[%clk 0:00:12]} 38. Ke2 {[%clk 0:00:14]}  Nb4 {[%clk 0:00:12]} 39. a4 {[%clk 0:00:14]}  Nc2 {[%clk 0:00:12]} 40. Kd2 {[%clk 0:00:14]}  Nd4 {[%clk 0:00:12]} 41. Kc3 {[%clk 0:00:14]}  Nf3 {[%clk 0:00:12]} 42. h4 {[%clk 0:00:14]}  a5 {[%clk 0:00:12]} 43. c5 {[%clk 0:00:13]}  d5 {[%clk 0:00:10]} 44. c6 {[%clk 0:00:08]}  Ke6 {[%clk 0:00:10]} 45. h5 {[%clk 0:00:07]}  Ng5 {[%clk 0:00:10]} 46. Kd2 {[%clk 0:00:05]}  Kd6 {[%clk 0:00:10]} 47. g4 {[%clk 0:00:05]}  Kxc6 {[%clk 0:00:10]} 48. Ke2 {[%clk 0:00:06]}  Kc5 {[%clk 0:00:10]} 49. Kf2 {[%clk 0:00:05]}  Kb4 {[%clk 0:00:10]} 50. Kg3 {[%clk 0:00:06]}  Kxa4 {[%clk 0:00:06]} 51. Kh4 {[%clk 0:00:06]}  Nf3+ {[%clk 0:00:04]} 52. Kg3 {[%clk 0:00:06]}  e4 {[%clk 0:00:04]} 53. dxe4 {[%clk 0:00:07]}  dxe4 {[%clk 0:00:05]} 54. h6 {[%clk 0:00:07]}  Ng5 {[%clk 0:00:05]} 55. Kf4 {[%clk 0:00:08]}  e3 {[%clk 0:00:05]} 56. Kxe3 {[%clk 0:00:08]}  Kb3 {[%clk 0:00:05]} 57. Kf4 {[%clk 0:00:09]}  Nh7 {[%clk 0:00:05]} 58. Kf5 {[%clk 0:00:09]}  a4 {[%clk 0:00:05]} 59. g5 {[%clk 0:00:10]}  a3 {[%clk 0:00:06]} 60. g6 {[%clk 0:00:10]}  a2 {[%clk 0:00:05]} 61. gxh7 {[%clk 0:00:11]}  a1=Q {[%clk 0:00:06]} 62. Kg6 {[%clk 0:00:10]}  Qh8 {[%clk 0:00:07]} 63. Kh5 {[%clk 0:00:11]}  Kc4 {[%clk 0:00:07]} 64. Kg5 {[%clk 0:00:12]}  Kd5 {[%clk 0:00:08]} 65. Kg6 {[%clk 0:00:12]}  Ke6 {[%clk 0:00:08]} 66. Kh5 {[%clk 0:00:12]}  Kf5 {[%clk 0:00:09]} 67. Kh4 {[%clk 0:00:13]}  Qxh7 {[%clk 0:00:10]} 68. Kg3 {[%clk 0:00:13]}  Qg6+ {[%clk 0:00:10]} 69. Kh4 {[%clk 0:00:13]}  Qxh6+ {[%clk 0:00:11]} 0-1


[Site "https://www.chess.com"]

[Event "Titled Tuesday Blitz May 03 Late 2022"]
[White "Stevens, Christian"]
[Black "Romero Ruscalleda, Josep"]
[WhiteFideId "2604450"]
[BlackFideId "2231859"]
[WhiteElo "2489"]
[BlackElo "2278"]
[Result "1-0"]
[Round "02"]
[TimeControl "180+1"]
[Date "2022.05.03"]
[WhiteClock "0:02:38"]
[BlackClock "0:02:25"]

1. d4 {[%clk 0:03:00]}  g6 {[%clk 0:03:00]} 2. c4 {[%clk 0:03:00]}  Bg7 {[%clk 0:03:01]} 3. Nc3 {[%clk 0:02:59]}  d6 {[%clk 0:03:01]} 4. e4 {[%clk 0:02:59]}  e5 {[%clk 0:03:02]} 5. d5 {[%clk 0:02:56]}  Ne7 {[%clk 0:03:01]} 6. g4 {[%clk 0:02:52]}  f5 {[%clk 0:02:59]} 7. gxf5 {[%clk 0:02:51]}  gxf5 {[%clk 0:02:59]} 8. Qh5+ {[%clk 0:02:51]}  Kf8 {[%clk 0:02:58]} 9. Nf3 {[%clk 0:02:46]}  Nd7 {[%clk 0:02:51]} 10. Ng5 {[%clk 0:02:43]}  Ng6 {[%clk 0:02:24]} 11. Ne6+ {[%clk 0:02:41]}  Kf7 {[%clk 0:02:24]} 12. Nxd8+ {[%clk 0:02:39]}  Rxd8 {[%clk 0:02:25]} 13. exf5 {[%clk 0:02:38]} 1-0


[Site "https://www.chess.com"]

[Event "Titled Tuesday Blitz May 03 Late 2022"]
[White "Taichman, Ori"]
[Black "Dubov, Daniil"]
[WhiteFideId "2804069"]
[BlackFideId "24126055"]
[WhiteElo "2227"]
[BlackElo "2791"]
[Result "0-1"]
[Round "02"]
[TimeControl "180+1"]
[Date "2022.05.03"]
[WhiteClock "0:00:02"]
[BlackClock "0:00:46"]

1. e4 {[%clk 0:02:54]}  c5 {[%clk 0:02:57]} 2. b3 {[%clk 0:02:54]}  g6 {[%clk 0:02:56]} 3. Bb2 {[%clk 0:02:54]}  Nf6 {[%clk 0:02:57]} 4. Qf3 {[%clk 0:02:55]}  d6 {[%clk 0:02:49]} 5. Nc3 {[%clk 0:02:55]}  Bg7 {[%clk 0:02:49]} 6. Bb5+ {[%clk 0:02:54]}  Bd7 {[%clk 0:02:47]} 7. Bxd7+ {[%clk 0:02:53]}  Nbxd7 {[%clk 0:02:45]} 8. Nd5 {[%clk 0:02:54]}  O-O {[%clk 0:02:32]} 9. Ne2 {[%clk 0:02:49]}  e5 {[%clk 0:02:10]} 10. Nec3 {[%clk 0:02:43]}  Nxd5 {[%clk 0:02:08]} 11. Nxd5 {[%clk 0:02:44]}  f5 {[%clk 0:02:08]} 12. h4 {[%clk 0:02:23]}  Nf6 {[%clk 0:02:04]} 13. exf5 {[%clk 0:02:19]}  e4 {[%clk 0:02:01]} 14. Qc3 {[%clk 0:01:36]}  Rf7 {[%clk 0:01:33]} 15. fxg6 {[%clk 0:01:34]}  hxg6 {[%clk 0:01:33]} 16. Qc4 {[%clk 0:00:26]}  Nxd5 {[%clk 0:01:31]} 17. Bxg7 {[%clk 0:00:26]}  Nb6 {[%clk 0:01:31]} 18. Qe6 {[%clk 0:00:23]}  Kxg7 {[%clk 0:01:31]} 19. h5 {[%clk 0:00:23]}  Qf6 {[%clk 0:01:29]} 20. Qxf6+ {[%clk 0:00:18]}  Rxf6 {[%clk 0:01:28]} 21. hxg6 {[%clk 0:00:19]}  Rxg6 {[%clk 0:01:28]} 22. g3 {[%clk 0:00:17]}  Rf8 {[%clk 0:01:27]} 23. Rh4 {[%clk 0:00:18]}  d5 {[%clk 0:01:18]} 24. a4 {[%clk 0:00:18]}  Nd7 {[%clk 0:01:16]} 25. Rh5 {[%clk 0:00:16]}  Nf6 {[%clk 0:01:14]} 26. Rf5 {[%clk 0:00:14]}  Re8 {[%clk 0:01:10]} 27. O-O-O {[%clk 0:00:14]}  Rg4 {[%clk 0:01:07]} 28. c4 {[%clk 0:00:14]}  Kg6 {[%clk 0:01:06]} 29. Rf4 {[%clk 0:00:13]}  Rxf4 {[%clk 0:01:06]} 30. gxf4 {[%clk 0:00:14]}  d4 {[%clk 0:01:00]} 31. Rg1+ {[%clk 0:00:13]}  Kf5 {[%clk 0:01:01]} 32. Rg5+ {[%clk 0:00:14]}  Kxf4 {[%clk 0:01:01]} 33. Rxc5 {[%clk 0:00:15]}  Re7 {[%clk 0:00:56]} 34. a5 {[%clk 0:00:14]}  Ng4 {[%clk 0:00:55]} 35. Rd5 {[%clk 0:00:14]}  d3 {[%clk 0:00:55]} 36. c5 {[%clk 0:00:12]}  Nxf2 {[%clk 0:00:54]} 37. b4 {[%clk 0:00:12]}  a6 {[%clk 0:00:53]} 38. Kb2 {[%clk 0:00:10]}  e3 {[%clk 0:00:47]} 39. dxe3+ {[%clk 0:00:10]}  Kf3 {[%clk 0:00:48]} 40. Kc3 {[%clk 0:00:07]}  Ke2 {[%clk 0:00:47]} 41. Rd6 {[%clk 0:00:02]}  Ne4+ {[%clk 0:00:46]} 0-1


[Site "https://www.chess.com"]

[Event "Titled Tuesday Blitz May 03 Late 2022"]
[White "Thybo, Jesper Sondergaard"]
[Black "Melaugh, Shane"]
[WhiteFideId "1438832"]
[BlackFideId "2509580"]
[WhiteElo "2724"]
[BlackElo "2420"]
[Result "1-0"]
[Round "02"]
[TimeControl "180+1"]
[Date "2022.05.03"]
[WhiteClock "0:00:10"]
[BlackClock "0:00:32"]

1. Nf3 {[%clk 0:03:00]}  f5 {[%clk 0:02:57]} 2. b3 {[%clk 0:03:00]}  Nf6 {[%clk 0:02:55]} 3. Bb2 {[%clk 0:02:59]}  d6 {[%clk 0:02:50]} 4. Bxf6 {[%clk 0:02:58]}  exf6 {[%clk 0:02:49]} 5. d4 {[%clk 0:02:58]}  d5 {[%clk 0:02:48]} 6. g3 {[%clk 0:02:57]}  Bd6 {[%clk 0:02:44]} 7. Bg2 {[%clk 0:02:56]}  O-O {[%clk 0:02:44]} 8. O-O {[%clk 0:02:54]}  Be6 {[%clk 0:02:44]} 9. e3 {[%clk 0:02:52]}  c6 {[%clk 0:02:43]} 10. Nfd2 {[%clk 0:02:47]}  Nd7 {[%clk 0:02:42]} 11. c4 {[%clk 0:02:47]}  Qe8 {[%clk 0:02:25]} 12. Nc3 {[%clk 0:02:44]}  Bb4 {[%clk 0:02:24]} 13. cxd5 {[%clk 0:02:30]}  Bxc3 {[%clk 0:02:24]} 14. dxe6 {[%clk 0:02:30]}  Qxe6 {[%clk 0:02:22]} 15. Rc1 {[%clk 0:02:25]}  Bxd2 {[%clk 0:02:20]} 16. Qxd2 {[%clk 0:02:24]}  Nb6 {[%clk 0:02:20]} 17. Rc5 {[%clk 0:02:23]}  Nd7 {[%clk 0:02:05]} 18. Rc3 {[%clk 0:02:16]}  Qd6 {[%clk 0:02:02]} 19. Rfc1 {[%clk 0:02:10]}  g6 {[%clk 0:01:58]} 20. Qb2 {[%clk 0:02:03]}  a5 {[%clk 0:01:55]} 21. a3 {[%clk 0:01:55]}  Kg7 {[%clk 0:01:52]} 22. h4 {[%clk 0:01:50]}  Rfe8 {[%clk 0:01:45]} 23. b4 {[%clk 0:01:44]}  axb4 {[%clk 0:01:45]} 24. Qxb4 {[%clk 0:01:44]}  Qxb4 {[%clk 0:01:41]} 25. axb4 {[%clk 0:01:45]}  Nf8 {[%clk 0:01:37]} 26. b5 {[%clk 0:01:43]}  cxb5 {[%clk 0:01:33]} 27. Rc7+ {[%clk 0:01:43]}  Kh6 {[%clk 0:01:29]} 28. Rxb7 {[%clk 0:01:42]}  Rab8 {[%clk 0:01:29]} 29. Rb1 {[%clk 0:01:19]}  Rec8 {[%clk 0:01:14]} 30. R7xb5 {[%clk 0:01:10]}  Rxb5 {[%clk 0:01:14]} 31. Rxb5 {[%clk 0:01:11]}  Rc1+ {[%clk 0:01:13]} 32. Bf1 {[%clk 0:01:08]}  Ne6 {[%clk 0:01:12]} 33. Rb6 {[%clk 0:01:05]}  Nc7 {[%clk 0:01:02]} 34. Rxf6 {[%clk 0:01:02]}  Nd5 {[%clk 0:01:02]} 35. Rd6 {[%clk 0:00:59]}  Nc3 {[%clk 0:01:02]} 36. Kg2 {[%clk 0:00:57]}  Rc2 {[%clk 0:01:00]} 37. Rc6 {[%clk 0:00:55]}  Kg7 {[%clk 0:00:54]} 38. Rc7+ {[%clk 0:00:52]}  Kf6 {[%clk 0:00:54]} 39. Bd3 {[%clk 0:00:48]}  Rc1 {[%clk 0:00:53]} 40. Rxh7 {[%clk 0:00:46]}  Rd1 {[%clk 0:00:52]} 41. Bc4 {[%clk 0:00:38]}  g5 {[%clk 0:00:45]} 42. Rh6+ {[%clk 0:00:26]}  Kg7 {[%clk 0:00:42]} 43. hxg5 {[%clk 0:00:27]}  Ne4 {[%clk 0:00:42]} 44. Bd5 {[%clk 0:00:18]}  Nxg5 {[%clk 0:00:39]} 45. Ra6 {[%clk 0:00:18]}  Rd2 {[%clk 0:00:38]} 46. g4 {[%clk 0:00:14]}  fxg4 {[%clk 0:00:37]} 47. Kg3 {[%clk 0:00:14]}  Nh7 {[%clk 0:00:37]} 48. Ra2 {[%clk 0:00:13]}  Rd1 {[%clk 0:00:33]} 49. Bb3 {[%clk 0:00:10]}  Nf6 {[%clk 0:00:32]} 50. Bxd1 {[%clk 0:00:10]} 1-0


[Site "https://www.chess.com"]

[Event "Titled Tuesday Blitz May 03 Late 2022"]
[White "Toniutti, Ezio"]
[Black "Semenenko, Dmytry"]
[WhiteFideId "113034"]
[BlackFideId "14118645"]
[WhiteElo "2215"]
[BlackElo "2113"]
[Result "0-1"]
[Round "02"]
[TimeControl "180+1"]
[Date "2022.05.03"]
[WhiteClock "0:01:50"]
[BlackClock "0:01:31"]

1. d4 {[%clk 0:02:52]}  d5 {[%clk 0:02:58]} 2. c4 {[%clk 0:02:52]}  c6 {[%clk 0:02:57]} 3. Nc3 {[%clk 0:02:53]}  Nf6 {[%clk 0:02:57]} 4. e3 {[%clk 0:02:53]}  g6 {[%clk 0:02:57]} 5. Nf3 {[%clk 0:02:54]}  Bg7 {[%clk 0:02:57]} 6. cxd5 {[%clk 0:02:53]}  cxd5 {[%clk 0:02:57]} 7. Be2 {[%clk 0:02:53]}  O-O {[%clk 0:02:57]} 8. O-O {[%clk 0:02:54]}  Nc6 {[%clk 0:02:57]} 9. Qb3 {[%clk 0:02:53]}  a6 {[%clk 0:02:54]} 10. Bd2 {[%clk 0:02:53]}  b5 {[%clk 0:02:37]} 11. a4 {[%clk 0:02:47]}  b4 {[%clk 0:02:29]} 12. Na2 {[%clk 0:02:47]}  a5 {[%clk 0:02:30]} 13. Nc1 {[%clk 0:02:47]}  Ne4 {[%clk 0:02:27]} 14. Bb5 {[%clk 0:02:46]}  Bb7 {[%clk 0:02:23]} 15. Nd3 {[%clk 0:02:46]}  Qd6 {[%clk 0:02:17]} 16. Rac1 {[%clk 0:02:39]}  Rac8 {[%clk 0:02:16]} 17. Rc2 {[%clk 0:02:38]}  g5 {[%clk 0:02:04]} 18. Rfc1 {[%clk 0:02:32]}  g4 {[%clk 0:02:04]} 19. Bxc6 {[%clk 0:02:31]}  Bxc6 {[%clk 0:02:00]} 20. Nfe5 {[%clk 0:02:25]}  Nxd2 {[%clk 0:01:52]} 21. Rxd2 {[%clk 0:02:22]}  Bb7 {[%clk 0:01:52]} 22. Rxc8 {[%clk 0:02:01]}  Rxc8 {[%clk 0:01:51]} 23. Nxg4 {[%clk 0:02:00]}  Ba6 {[%clk 0:01:45]} 24. Rd1 {[%clk 0:01:53]}  Bc4 {[%clk 0:01:45]} 25. Qc2 {[%clk 0:01:50]}  Qg6 {[%clk 0:01:31]} 0-1


[Site "https://www.chess.com"]

[Event "Titled Tuesday Blitz May 03 Late 2022"]
[White "Voege, Tobias"]
[Black "Hoffmann, Asa"]
[WhiteFideId "1270513"]
[BlackFideId "2001470"]
[WhiteElo "2297"]
[BlackElo "2117"]
[Result "1-0"]
[Round "02"]
[TimeControl "180+1"]
[Date "2022.05.03"]
[WhiteClock "0:00:04"]
[BlackClock "0:00:01"]

1. Nf3 {[%clk 0:03:00]}  d6 {[%clk 0:02:56]} 2. d4 {[%clk 0:02:59]}  Bg4 {[%clk 0:02:55]} 3. Nbd2 {[%clk 0:02:58]}  Nd7 {[%clk 0:02:55]} 4. g3 {[%clk 0:02:58]}  c6 {[%clk 0:02:54]} 5. Bg2 {[%clk 0:02:59]}  Ngf6 {[%clk 0:02:54]} 6. O-O {[%clk 0:02:59]}  e5 {[%clk 0:02:54]} 7. dxe5 {[%clk 0:02:58]}  dxe5 {[%clk 0:02:54]} 8. h3 {[%clk 0:02:58]}  Bh5 {[%clk 0:02:54]} 9. b3 {[%clk 0:02:57]}  Qc7 {[%clk 0:02:53]} 10. Bb2 {[%clk 0:02:57]}  Be7 {[%clk 0:02:46]} 11. Ng5 {[%clk 0:02:50]}  Bg6 {[%clk 0:02:40]} 12. Nge4 {[%clk 0:02:33]}  Nd5 {[%clk 0:02:33]} 13. c4 {[%clk 0:02:28]}  N5b6 {[%clk 0:02:30]} 14. a3 {[%clk 0:02:15]}  Rd8 {[%clk 0:02:29]} 15. Qc1 {[%clk 0:02:14]}  Nc5 {[%clk 0:02:18]} 16. Nxc5 {[%clk 0:02:08]}  Bxc5 {[%clk 0:02:17]} 17. b4 {[%clk 0:02:08]}  Bd4 {[%clk 0:02:16]} 18. c5 {[%clk 0:02:09]}  Nd7 {[%clk 0:02:13]} 19. Bxd4 {[%clk 0:02:05]}  exd4 {[%clk 0:02:13]} 20. Nc4 {[%clk 0:02:05]}  O-O {[%clk 0:02:12]} 21. Qb2 {[%clk 0:02:03]}  Nf6 {[%clk 0:02:09]} 22. Rad1 {[%clk 0:02:01]}  d3 {[%clk 0:02:09]} 23. Nd6 {[%clk 0:01:25]}  dxe2 {[%clk 0:01:33]} 24. Qxe2 {[%clk 0:01:25]}  Ne8 {[%clk 0:01:25]} 25. Nc4 {[%clk 0:01:17]}  Nf6 {[%clk 0:01:24]} 26. Rxd8 {[%clk 0:01:09]}  Rxd8 {[%clk 0:01:22]} 27. Rd1 {[%clk 0:01:10]}  h6 {[%clk 0:01:19]} 28. Rd6 {[%clk 0:00:38]}  Re8 {[%clk 0:01:09]} 29. Qd1 {[%clk 0:00:33]}  Be4 {[%clk 0:01:05]} 30. Bxe4 {[%clk 0:00:24]}  Rxe4 {[%clk 0:01:04]} 31. Rd8+ {[%clk 0:00:21]}  Kh7 {[%clk 0:01:03]} 32. Ne3 {[%clk 0:00:17]}  Rxe3 {[%clk 0:00:56]} 33. fxe3 {[%clk 0:00:13]}  Qxg3+ {[%clk 0:00:56]} 34. Kf1 {[%clk 0:00:14]}  Qxh3+ {[%clk 0:00:51]} 35. Ke1 {[%clk 0:00:13]}  Qxe3+ {[%clk 0:00:50]} 36. Qe2 {[%clk 0:00:13]}  Qg1+ {[%clk 0:00:45]} 37. Kd2 {[%clk 0:00:12]}  Nd5 {[%clk 0:00:45]} 38. Qe4+ {[%clk 0:00:09]}  g6 {[%clk 0:00:44]} 39. Re8 {[%clk 0:00:08]}  Qf2+ {[%clk 0:00:38]} 40. Qe2 {[%clk 0:00:08]}  Qd4+ {[%clk 0:00:37]} 41. Ke1 {[%clk 0:00:08]}  Nf4 {[%clk 0:00:35]} 42. Qe4 {[%clk 0:00:05]}  Qc3+ {[%clk 0:00:32]} 43. Kf2 {[%clk 0:00:05]}  Nh3+ {[%clk 0:00:31]} 44. Kg2 {[%clk 0:00:06]}  Ng5 {[%clk 0:00:30]} 45. Qe5 {[%clk 0:00:05]}  Qf3+ {[%clk 0:00:29]} 46. Kg1 {[%clk 0:00:05]}  Qg4+ {[%clk 0:00:27]} 47. Kf1 {[%clk 0:00:06]}  Qf3+ {[%clk 0:00:25]} 48. Ke1 {[%clk 0:00:06]}  Qh1+ {[%clk 0:00:12]} 49. Ke2 {[%clk 0:00:06]}  Qg2+ {[%clk 0:00:11]} 50. Kd1 {[%clk 0:00:07]}  Qf3+ {[%clk 0:00:10]} 51. Kc2 {[%clk 0:00:07]}  Qf5+ {[%clk 0:00:09]} 52. Qxf5 {[%clk 0:00:07]}  gxf5 {[%clk 0:00:09]} 53. Re7 {[%clk 0:00:07]}  f4 {[%clk 0:00:08]} 54. Rxb7 {[%clk 0:00:07]}  f3 {[%clk 0:00:08]} 55. Kd3 {[%clk 0:00:07]}  h5 {[%clk 0:00:08]} 56. Ke3 {[%clk 0:00:07]}  h4 {[%clk 0:00:07]} 57. Rd7 {[%clk 0:00:06]}  h3 {[%clk 0:00:07]} 58. Rd1 {[%clk 0:00:05]}  Kg6 {[%clk 0:00:06]} 59. b5 {[%clk 0:00:05]}  cxb5 {[%clk 0:00:05]} 60. c6 {[%clk 0:00:06]}  Ne6 {[%clk 0:00:04]} 61. Kxf3 {[%clk 0:00:05]}  Kf5 {[%clk 0:00:02]} 62. Rd5+ {[%clk 0:00:04]}  Kf6 {[%clk 0:00:02]} 63. Rd6 {[%clk 0:00:05]}  Ke7 {[%clk 0:00:01]} 64. Rd7+ {[%clk 0:00:05]}  Ke8 {[%clk 0:00:01]} 65. Kg3 {[%clk 0:00:05]}  a5 {[%clk 0:00:01]} 66. Kxh3 {[%clk 0:00:04]} 1-0


[Site "https://www.chess.com"]